fUST/lending_fUST_20250912
["ID","MTS","AMOUNT","RATE_DAILY","PERIOD"]
[384911079,1757626233499,-503.41,0.0001407,2]
[384911080,1757626233508,-480.0,0.0001407,2]
[384911081,1757626233518,-480.0,0.0001407,2]
[384911082,1757626233528,-630.83,0.0001407,2]
[384911083,1757626233538,-480.0,0.0001407,2]
[384911084,1757626233548,-480.0,0.0001407,2]
[384911085,1757626233557,-480.0,0.0001407,2]
[384911086,1757626233567,-480.0,0.0001407,2]
[384911087,1757626233577,-2219.74,0.0001407,2]
[384911088,1757626233587,-480.0,0.0001407,2]
[384911089,1757626233596,-561.55,0.0001407,2]
[384911090,1757626233606,-480.0,0.0001407,2]
[384911091,1757626233616,-480.0,0.0001407,2]
[384911092,1757626233625,-506.07,0.0001407,2]
[384911093,1757626233635,-480.0,0.0001407,2]
[384911094,1757626233644,-480.0,0.0001407,2]
[384911095,1757626233654,-480.0,0.0001407,2]
[384911096,1757626233663,-480.0,0.0001407,2]
[384911097,1757626233672,-480.0,0.0001407,2]
[384911098,1757626233681,-480.0,0.0001407,2]
[384911099,1757626233691,-480.0,0.0001407,2]
[384911100,1757626233700,-529.25,0.0001407,2]
[384911101,1757626233709,-480.0,0.0001407,2]
[384911102,1757626233719,-480.0,0.0001407,2]
[384911103,1757626233728,-480.0,0.0001407,2]
[384911104,1757626233738,-480.0,0.0001407,2]
[384911105,1757626233747,-480.0,0.0001407,2]
[384911106,1757626233757,-480.0,0.0001407,2]
[384911107,1757626233767,-480.0,0.0001407,2]
[384911108,1757626233776,-166.8,0.0001407,2]
[384911109,1757626233788,-480.0,0.0001407,2]
[384911110,1757626233798,-697.48,0.0001407,2]
[384911111,1757626233807,-2219.58,0.0001407,2]
[384911112,1757626233818,-480.0,0.0001407,2]
[384911113,1757626233827,-480.0,0.0001407,2]
[384911114,1757626233837,-480.0,0.0001407,2]
[384911115,1757626233846,-480.0,0.0001407,2]
[384911116,1757626233858,-480.0,0.0001407,2]
[384911117,1757626233867,-480.0,0.00014071,2]
[384911118,1757626233877,-480.0,0.00014071,2]
[384911119,1757626233886,-480.0,0.00014071,2]
[384911120,1757626233895,-480.0,0.00014071,2]
[384911121,1757626233905,-480.0,0.00014071,2]
[384911122,1757626233915,-480.0,0.00014071,2]
[384911123,1757626233925,-480.0,0.00014071,2]
[384911124,1757626233934,-73.15629839,0.00014071,2]
[384911125,1757626234771,1000.0,0.00012961,2]
[384911157,1757626238165,-480.0,0.00013795,2]
[384911159,1757626238178,-578.26,0.00013795,2]
[384911162,1757626238191,-480.0,0.00013796,2]
[384911164,1757626238204,-480.0,0.00014069,2]
[384911166,1757626238215,-578.26,0.00014069,2]
[384911168,1757626238225,-480.0,0.0001407,2]
[384911170,1757626238236,-406.84370161,0.00014071,2]
[384911173,1757626238248,-480.0,0.00014071,2]
[384911175,1757626238259,-480.0,0.00014071,2]
[384911177,1757626238270,-480.0,0.00014071,2]
[384911179,1757626238281,-480.0,0.00014071,2]
[384911181,1757626238292,-480.0,0.00014071,2]
[384911184,1757626238302,-480.0,0.00014071,2]
[384911186,1757626238312,-480.0,0.00014071,2]
[384911188,1757626238322,-480.0,0.00014071,2]
[384911191,1757626238333,-480.0,0.00014071,2]
[384911194,1757626238344,-480.0,0.00014071,2]
[384911196,1757626238355,-480.0,0.00014071,2]
[384911198,1757626238366,-300.0,0.00014072,2]
[384911201,1757626238377,-300.0,0.00014072,2]
[384911203,1757626238387,-300.0,0.00014072,2]
[384911205,1757626238398,-300.0,0.00014072,2]
[384911207,1757626238409,-300.0,0.00014072,2]
[384911209,1757626238419,-300.0,0.00014072,2]
[384911211,1757626238429,-300.0,0.00014072,2]
[384911214,1757626238440,-300.0,0.00014072,2]
[384911216,1757626238450,-300.0,0.00014072,2]
[384911218,1757626238461,-60.55830827,0.00014072,2]
[384911220,1757626238474,-239.44169173,0.00014072,2]
[384911222,1757626238484,-300.0,0.00014072,2]
[384911225,1757626238495,-300.0,0.00014072,2]
[384911227,1757626238506,-300.0,0.00014072,2]
[384911229,1757626238516,-75.23807588,0.00014072,2]
[384911233,1757626238546,-224.76192412,0.00014072,2]
[384911235,1757626238557,-275.23807588,0.00014072,2]
[384911238,1757626238569,-24.76192412,0.00014072,2]
[384911240,1757626238580,-480.0,0.00014072,2]
[384911242,1757626238589,-245.10191578,0.00014072,2]
[384911713,1757626243464,-480.0,0.00013796,2]
[384911715,1757626243473,-82.13887865,0.00013796,2]
[384911887,1757626245337,480.0,0.00013658,2]
[384911977,1757626246170,-1594.14,0.00013795,2]
[384911979,1757626246179,-397.86112135,0.00013796,2]
[384911981,1757626246188,-994.2944878,0.00014069,2]
[384912109,1757626247514,-599.8455122,0.00014069,2]
[384912111,1757626247523,-480.0,0.0001407,2]
[384912113,1757626247533,-480.0,0.0001407,2]
[384912115,1757626247543,-234.89808422,0.00014072,2]
[384912117,1757626247552,-480.0,0.00014072,2]
[384912119,1757626247563,-480.0,0.00014072,2]
[384912121,1757626247573,-480.0,0.00014072,2]
[384912123,1757626247582,-480.0,0.00014072,2]
[384912125,1757626247592,-480.0,0.00014072,2]
[384912127,1757626247602,-480.0,0.00014072,2]
[384912129,1757626247611,-480.0,0.00014072,2]
[384912131,1757626247621,-480.0,0.00014072,2]
[384912133,1757626247630,-480.0,0.00014072,2]
[384912135,1757626247640,-480.0,0.00014172,2]
[384912137,1757626247651,-2058.28371895,0.00014173,2]
[384912139,1757626247661,-203.30020738,0.00014244,2]
[384912141,1757626247670,-10022.04953973,0.00014245,2]
[384912143,1757626247683,-27551.5382954,0.00014245,2]
[384912752,1757626253961,207.36058565,0.00013657,2]
[384914427,1757626270980,1551.43900021,0.00013657,2]
[384914432,1757626271027,431.54099979,0.00013657,2]
[384918729,1757626603223,9568.46900021,0.00012961,2]
[384918730,1757626603269,431.53099979,0.00012961,2]
[384918735,1757626742549,220.9788856,0.00013659,2]
[384918736,1757626745256,152.40059947,0.00013659,2]
[384918739,1757626802428,220.9788856,0.00013659,2]
[384918740,1757626804787,152.40059947,0.00013659,2]
[384918741,1757626863982,152.40059947,0.00013659,2]
[384918743,1757626923934,152.40059947,0.00013659,2]
[384918746,1757626989603,152.40059947,0.00013659,2]
[384918749,1757627043761,152.40059947,0.00013661,2]
[384918757,1757627104106,152.40059947,0.00013661,2]
[384918761,1757627109191,544.461294,0.00013699,2]
[384918763,1757627164023,152.40059947,0.00013661,2]
[384918770,1757627224021,152.40059947,0.00013661,2]
[384918771,1757627271543,1000.0,0.00012961,2]
[384918772,1757627278121,666.0,0.00012959,2]
[384918773,1757627283907,152.40059947,0.00013661,2]
[384918774,1757627291643,400.212619,0.0001338,2]
[384918775,1757627291958,387.72907282,0.00013381,2]
[384918776,1757627304149,165.0,0.00013655,2]
[384918777,1757627320811,300.0,0.00013655,2]
[384918778,1757627343813,152.40059947,0.00013661,2]
[384918779,1757627344339,731.48752588,0.00013656,2]
[384918785,1757627368538,300.0,0.00013655,2]
[384918786,1757627391514,200.0,0.00013655,2]
[384918787,1757627404033,152.40059947,0.00013661,2]
[384918837,1757627432607,-300.0,0.00013793,2]
[384918839,1757627432616,-1907.99451736,0.00013794,2]
[384918842,1757627432627,-466.53666222,0.00013794,2]
[384918844,1757627432638,-12337.02304896,0.00013794,2]
[384918846,1757627432647,-480.0,0.00013794,2]
[384918848,1757627432657,-480.0,0.00013794,2]
[384918850,1757627432665,-480.0,0.00013794,2]
[384918852,1757627432675,-489.72142323,0.00013794,2]
[384918854,1757627432684,-480.0,0.00013794,2]
[384918856,1757627432693,-480.0,0.00013794,2]
[384918858,1757627432702,-480.0,0.00013794,2]
[384918860,1757627432711,-480.0,0.00013794,2]
[384918862,1757627432727,-1502.58,0.00013794,2]
[384918863,1757627432739,-552.69,0.00013794,2]
[384918865,1757627432748,-480.0,0.00013794,2]
[384918868,1757627432757,-480.0,0.00013794,2]
[384918870,1757627432766,-480.0,0.00013794,2]
[384918872,1757627432776,-480.0,0.00013794,2]
[384918874,1757627432786,-480.0,0.00013794,2]
[384918875,1757627432795,-544.29,0.00013794,2]
[384918878,1757627432804,-480.0,0.00013794,2]
[384918881,1757627432813,-480.0,0.00013794,2]
[384918883,1757627432823,-490.32,0.00013794,2]
[384918885,1757627432831,-480.0,0.00013794,2]
[384918887,1757627432840,-480.0,0.00013794,2]
[384918889,1757627432849,-480.0,0.00013794,2]
[384918891,1757627432858,-480.0,0.00013794,2]
[384918893,1757627432867,-480.0,0.00013794,2]
[384918895,1757627432876,-480.0,0.00013794,2]
[384918897,1757627432885,-480.0,0.00013794,2]
[384918899,1757627432895,-480.0,0.00013794,2]
[384918901,1757627432904,-409.96248606,0.00013794,2]
[384918903,1757627432913,-480.0,0.00013794,2]
[384918905,1757627432922,-480.0,0.00013794,2]
[384918907,1757627432932,-273.12,0.00013794,2]
[384918909,1757627432941,-480.0,0.00013794,2]
[384918911,1757627432950,-480.0,0.00013794,2]
[384918913,1757627432959,-480.0,0.00013794,2]
[384918915,1757627432967,-480.0,0.00013794,2]
[384918917,1757627432976,-236.52,0.00013794,2]
[384918919,1757627432985,-528.51,0.00013794,2]
[384918921,1757627432994,-480.0,0.00013794,2]
[384918923,1757627433003,-480.0,0.00013794,2]
[384918925,1757627433012,-480.0,0.00013794,2]
[384918927,1757627433022,-480.0,0.00013794,2]
[384918929,1757627433031,-480.0,0.00013794,2]
[384918930,1757627433040,-665.33,0.00013794,2]
[384918932,1757627433049,-612.72,0.00013794,2]
[384918934,1757627433058,-142.02757882,0.00013794,2]
[384918937,1757627433071,-337.97242118,0.00013794,2]
[384918939,1757627433080,-223.047042,0.00013794,2]
[384918941,1757627433092,-256.952958,0.00013794,2]
[384918943,1757627433101,-480.0,0.00013795,2]
[384918945,1757627433111,-480.0,0.00013795,2]
[384918947,1757627433121,-480.0,0.00013795,2]
[384918949,1757627433131,-480.0,0.00013795,2]
[384918951,1757627433141,-480.0,0.00013795,2]
[384918953,1757627433151,-480.0,0.00013795,2]
[384918955,1757627433160,-480.0,0.00013795,2]
[384918957,1757627433169,-480.0,0.00013795,2]
[384918959,1757627433179,-480.0,0.00013795,2]
[384918961,1757627433190,-480.0,0.00013795,2]
[384918963,1757627433200,-480.0,0.00013795,2]
[384918965,1757627433210,-480.0,0.00013795,2]
[384918967,1757627433219,-480.0,0.00013795,2]
[384918969,1757627433230,-480.0,0.00013795,2]
[384918971,1757627433240,-480.0,0.00013795,2]
[384918973,1757627433250,-480.0,0.00013795,2]
[384918975,1757627433260,-627.1,0.00013795,2]
[384918977,1757627433270,-480.0,0.00013795,2]
[384918979,1757627433281,-480.0,0.00013795,2]
[384918981,1757627433292,-480.0,0.00013795,2]
[384918983,1757627433303,-480.0,0.00013795,2]
[384918985,1757627433312,-480.0,0.00013795,2]
[384918987,1757627433323,-480.0,0.00013795,2]
[384918989,1757627433332,-480.0,0.00013795,2]
[384918991,1757627433341,-480.0,0.00013795,2]
[384918993,1757627433351,-2126.74,0.00013795,2]
[384918995,1757627433361,-480.0,0.00013795,2]
[384918997,1757627433372,-371.57367062,0.00013795,2]
[384918999,1757627433382,-480.0,0.00013795,2]
[384919001,1757627433392,-480.0,0.00013795,2]
[384919003,1757627433402,-535.79,0.00013795,2]
[384919005,1757627433412,-480.0,0.00013795,2]
[384919007,1757627433422,-523.74,0.00013795,2]
[384919009,1757627433432,-192.58196749,0.00013795,2]
[384919011,1757627433444,-287.41803251,0.00013795,2]
[384919013,1757627433454,-480.0,0.00013795,2]
[384919015,1757627433463,-2232.84,0.00013795,2]
[384919017,1757627433473,-480.0,0.00013795,2]
[384919019,1757627433482,-593.84443505,0.00013795,2]
[384919021,1757627433491,-480.0,0.00013795,2]
[384919023,1757627433500,-552.1,0.00013795,2]
[384919025,1757627433510,-238.83069607,0.00013795,2]
[384919027,1757627433520,-241.16930393,0.00013795,2]
[384919029,1757627433530,-480.0,0.00013796,2]
[384919031,1757627433539,-252.40069607,0.00013796,2]
[384919033,1757627433550,-227.59930393,0.00013796,2]
[384919035,1757627433559,-158.775827,0.00013796,2]
[384919485,1757627438580,-321.224173,0.00013796,2]
[384919486,1757627438589,-480.0,0.00013797,2]
[384919488,1757627438599,-271.47852694,0.00014067,2]
[384919497,1757627438688,-228.52147306,0.00014067,2]
[384919498,1757627438697,-500.0,0.00014067,2]
[384919500,1757627438706,-651.43551937,0.00014067,2]
[384919502,1757627438716,-500.0,0.00014067,2]
[384919504,1757627438725,-302.0,0.00014067,2]
[384919506,1757627438734,-500.0,0.00014067,2]
[384919507,1757627438743,-197.20323038,0.00014067,2]
[384919509,1757627438753,-329.68561519,0.00014067,2]
[384919511,1757627438762,-500.0,0.00014067,2]
[384919513,1757627438771,-480.0,0.00014068,2]
[384919515,1757627438781,-480.0,0.00014068,2]
[384919517,1757627438790,-480.0,0.00014068,2]
[384919518,1757627438799,-480.0,0.00014068,2]
[384919520,1757627438808,-480.0,0.00014068,2]
[384919522,1757627438818,-480.0,0.00014068,2]
[384919524,1757627438827,-480.0,0.00014068,2]
[384919526,1757627438837,-1502.58,0.00014068,2]
[384919527,1757627438846,-552.69,0.00014068,2]
[384919529,1757627438856,-480.0,0.00014068,2]
[384919531,1757627438866,-480.0,0.00014068,2]
[384919533,1757627438875,-480.0,0.00014068,2]
[384919535,1757627438884,-480.0,0.00014068,2]
[384919537,1757627438894,-544.29,0.00014068,2]
[384919539,1757627438903,-480.0,0.00014068,2]
[384919541,1757627438912,-480.0,0.00014068,2]
[384919543,1757627438922,-490.32,0.00014068,2]
[384919545,1757627438932,-480.0,0.00014068,2]
[384919547,1757627438941,-480.0,0.00014068,2]
[384919549,1757627438951,-480.0,0.00014068,2]
[384919551,1757627438960,-480.0,0.00014068,2]
[384919553,1757627438969,-480.0,0.00014068,2]
[384919555,1757627438979,-480.0,0.00014068,2]
[384919557,1757627438988,-480.0,0.00014068,2]
[384919559,1757627438997,-480.0,0.00014068,2]
[384919561,1757627439006,-480.0,0.00014068,2]
[384919562,1757627439015,-480.0,0.00014068,2]
[384919563,1757627439025,-345.15,0.00014068,2]
[384919564,1757627439034,-480.0,0.00014068,2]
[384919565,1757627439043,-480.0,0.00014068,2]
[384919566,1757627439052,-166.8,0.00014068,2]
[384919567,1757627439062,-480.0,0.00014068,2]
[384919568,1757627439071,-480.0,0.00014068,2]
[384919569,1757627439080,-480.0,0.00014068,2]
[384919570,1757627439089,-480.0,0.00014068,2]
[384919571,1757627439098,-665.33,0.00014068,2]
[384919572,1757627439107,-480.0,0.00014068,2]
[384919573,1757627439116,-480.0,0.00014068,2]
[384919574,1757627439125,-480.0,0.00014069,2]
[384919575,1757627439134,-480.0,0.00014069,2]
[384919576,1757627439143,-480.0,0.00014069,2]
[384919577,1757627439152,-480.0,0.00014069,2]
[384919578,1757627439161,-480.0,0.00014069,2]
[384919579,1757627439170,-480.0,0.00014069,2]
[384919580,1757627439178,-480.0,0.00014069,2]
[384919581,1757627439188,-480.0,0.00014069,2]
[384919582,1757627439196,-480.0,0.00014069,2]
[384919583,1757627439205,-480.0,0.00014069,2]
[384919584,1757627439214,-480.0,0.00014069,2]
[384919585,1757627439223,-480.0,0.00014069,2]
[384919586,1757627439232,-480.0,0.00014069,2]
[384919587,1757627439240,-480.0,0.00014069,2]
[384919588,1757627439250,-480.0,0.00014069,2]
[384919589,1757627439259,-480.0,0.00014069,2]
[384919590,1757627439267,-581.37,0.00014069,2]
[384919591,1757627439276,-480.0,0.00014069,2]
[384919592,1757627439285,-480.0,0.00014069,2]
[384919593,1757627439294,-480.0,0.00014069,2]
[384919594,1757627439306,-2126.74,0.00014069,2]
[384919595,1757627439315,-480.0,0.00014069,2]
[384919596,1757627439324,-535.79,0.00014069,2]
[384919597,1757627439334,-480.0,0.00014069,2]
[384919598,1757627439342,-523.74,0.00014069,2]
[384919599,1757627439351,-480.0,0.00014069,2]
[384919600,1757627439360,-2232.84,0.00014069,2]
[384919601,1757627439369,-324.24,0.00014069,2]
[384919602,1757627439378,-480.0,0.00014069,2]
[384919603,1757627439388,-480.0,0.00014069,2]
[384919604,1757627439485,-300.0,0.0001407,2]
[384919605,1757627439515,-300.0,0.0001407,2]
[384919606,1757627439524,-300.0,0.0001407,2]
[384919607,1757627439533,-300.0,0.0001407,2]
[384919608,1757627439542,-300.0,0.0001407,2]
[384919609,1757627439551,-300.0,0.0001407,2]
[384919610,1757627439560,-300.0,0.0001407,2]
[384919611,1757627439570,-300.0,0.0001407,2]
[384919612,1757627439579,-300.0,0.0001407,2]
[384919614,1757627439589,-300.0,0.0001407,2]
[384919615,1757627439598,-300.0,0.0001407,2]
[384919616,1757627439607,-300.0,0.0001407,2]
[384919617,1757627439617,-300.0,0.0001407,2]
[384919619,1757627439626,-300.0,0.0001407,2]
[384919620,1757627439635,-300.0,0.0001407,2]
[384919621,1757627439644,-480.0,0.0001407,2]
[384919623,1757627439654,-600.0,0.00014071,2]
[384919624,1757627439663,-480.0,0.00014071,2]
[384919626,1757627439673,-152.40059947,0.00014083,2]
[384919628,1757627439682,-1372.18914596,0.00014142,2]
[384919630,1757627439691,-1142.64233749,0.00014145,2]
[384919632,1757627439700,-310599.16797433,0.00014145,2]
[384919634,1757627439710,-348.00214185,0.00014242,2]
[384919636,1757627439719,-228.8999,0.00014245,2]
[384919638,1757627439728,-480.0,0.00014342,2]
[384919640,1757627439737,-480.0,0.00014342,2]
[384919641,1757627439746,-480.0,0.00014342,2]
[384919643,1757627439755,-480.0,0.00014342,2]
[384919645,1757627439765,-480.0,0.00014342,2]
[384919647,1757627439775,-480.0,0.00014342,2]
[384919649,1757627439784,-480.0,0.00014342,2]
[384919651,1757627439793,-1502.58,0.00014342,2]
[384919653,1757627439803,-552.69,0.00014342,2]
[384919655,1757627439812,-480.0,0.00014342,2]
[384919657,1757627439821,-480.0,0.00014342,2]
[384919659,1757627439831,-480.0,0.00014342,2]
[384919661,1757627439840,-480.0,0.00014342,2]
[384919663,1757627439849,-544.29,0.00014342,2]
[384919665,1757627439858,-480.0,0.00014342,2]
[384919667,1757627439867,-480.0,0.00014342,2]
[384919669,1757627439877,-490.32,0.00014342,2]
[384919671,1757627439886,-548.6,0.00014342,2]
[384919673,1757627439895,-572.05,0.00014342,2]
[384919675,1757627439905,-480.0,0.00014342,2]
[384919677,1757627439914,-480.0,0.00014342,2]
[384919679,1757627439923,-480.0,0.00014342,2]
[384919681,1757627439934,-480.0,0.00014342,2]
[384919684,1757627439944,-480.0,0.00014342,2]
[384919687,1757627439953,-480.0,0.00014342,2]
[384919690,1757627439963,-480.0,0.00014342,2]
[384919693,1757627439972,-458.37,0.00014342,2]
[384919695,1757627439981,-480.0,0.00014342,2]
[384919697,1757627439991,-328.06281309,0.00014342,2]
[384919699,1757627440000,-480.0,0.00014342,2]
[384919701,1757627440009,-480.0,0.00014342,2]
[384919703,1757627440018,-665.33,0.00014342,2]
[384919704,1757627440027,-480.0,0.00014342,2]
[384919706,1757627440036,-480.0,0.00014342,2]
[384919708,1757627440045,-480.0,0.00014343,2]
[384919710,1757627440054,-480.0,0.00014343,2]
[384919712,1757627440064,-480.0,0.00014343,2]
[384919715,1757627440073,-480.0,0.00014343,2]
[384919717,1757627440082,-480.0,0.00014343,2]
[384919719,1757627440092,-480.0,0.00014343,2]
[384919721,1757627440101,-480.0,0.00014343,2]
[384919723,1757627440110,-480.0,0.00014343,2]
[384919725,1757627440119,-480.0,0.00014343,2]
[384919727,1757627440128,-480.0,0.00014343,2]
[384919730,1757627440137,-480.0,0.00014343,2]
[384919732,1757627440146,-480.0,0.00014343,2]
[384919734,1757627440155,-480.0,0.00014343,2]
[384919735,1757627440164,-480.0,0.00014343,2]
[384919737,1757627440173,-480.0,0.00014343,2]
[384919739,1757627440182,-480.0,0.00014343,2]
[384919741,1757627440191,-480.0,0.00014343,2]
[384919743,1757627440200,-480.0,0.00014343,2]
[384919745,1757627440209,-480.0,0.00014343,2]
[384919747,1757627440219,-2126.74,0.00014343,2]
[384919749,1757627440228,-480.0,0.00014343,2]
[384919751,1757627440237,-535.79,0.00014343,2]
[384919753,1757627440246,-480.0,0.00014343,2]
[384919755,1757627440255,-523.74,0.00014343,2]
[384919757,1757627440264,-480.0,0.00014343,2]
[384919759,1757627440274,-2232.84,0.00014343,2]
[384919761,1757627440283,-480.0,0.00014343,2]
[384919763,1757627440294,-480.0,0.00014343,2]
[384919765,1757627440306,-480.0,0.00014344,2]
[384919767,1757627440315,-480.0,0.00014345,2]
[384919768,1757627440325,-348.00214182,0.00014516,2]
[384919770,1757627440334,-152.40059948,0.00014519,2]
[384919772,1757627440343,-480.0,0.00014616,2]
[384919774,1757627440353,-480.0,0.00014616,2]
[384919776,1757627440363,-480.0,0.00014616,2]
[384919778,1757627440372,-480.0,0.00014616,2]
[384919780,1757627440381,-480.0,0.00014616,2]
[384919782,1757627440391,-480.0,0.00014616,2]
[384919784,1757627440401,-480.0,0.00014616,2]
[384919786,1757627440410,-1502.58,0.00014616,2]
[384919788,1757627440419,-552.69,0.00014616,2]
[384919790,1757627440428,-480.0,0.00014616,2]
[384919792,1757627440437,-480.0,0.00014616,2]
[384919794,1757627440447,-480.0,0.00014616,2]
[384919796,1757627440456,-480.0,0.00014616,2]
[384919798,1757627440465,-544.29,0.00014616,2]
[384919800,1757627440474,-480.0,0.00014616,2]
[384919802,1757627440483,-480.0,0.00014616,2]
[384919824,1757627440699,-490.32,0.00014616,2]
[384919826,1757627440709,-480.0,0.00014616,2]
[384919828,1757627440718,-490.8,0.00014616,2]
[384919830,1757627440729,-477.16,0.00014616,2]
[384919832,1757627440738,-480.0,0.00014616,2]
[384919834,1757627440747,-480.0,0.00014616,2]
[384919836,1757627440756,-480.0,0.00014616,2]
[384919838,1757627440766,-480.0,0.00014616,2]
[384919840,1757627440775,-480.0,0.00014616,2]
[384919842,1757627440784,-480.0,0.00014616,2]
[384919844,1757627440793,-480.0,0.00014616,2]
[384919846,1757627440803,-665.33,0.00014616,2]
[384919848,1757627440811,-480.0,0.00014616,2]
[384919850,1757627440820,-480.0,0.00014616,2]
[384919852,1757627440829,-480.0,0.00014617,2]
[384919854,1757627440839,-480.0,0.00014617,2]
[384919856,1757627440848,-480.0,0.00014617,2]
[384919858,1757627440857,-480.0,0.00014617,2]
[384919860,1757627440866,-480.0,0.00014617,2]
[384919862,1757627440875,-480.0,0.00014617,2]
[384919864,1757627440883,-480.0,0.00014617,2]
[384919865,1757627440892,-480.0,0.00014617,2]
[384919867,1757627440901,-480.0,0.00014617,2]
[384919869,1757627440910,-480.0,0.00014617,2]
[384919871,1757627440919,-480.0,0.00014617,2]
[384919873,1757627440928,-480.0,0.00014617,2]
[384919875,1757627440939,-480.0,0.00014617,2]
[384919877,1757627440948,-480.0,0.00014617,2]
[384919879,1757627440958,-480.0,0.00014617,2]
[384919881,1757627440967,-480.0,0.00014617,2]
[384919883,1757627440976,-480.0,0.00014617,2]
[384919885,1757627440985,-480.0,0.00014617,2]
[384919887,1757627440994,-480.0,0.00014617,2]
[384919889,1757627441003,-2126.74,0.00014617,2]
[384919891,1757627441013,-480.0,0.00014617,2]
[384919893,1757627441022,-535.79,0.00014617,2]
[384919895,1757627441031,-480.0,0.00014617,2]
[384919897,1757627441040,-523.74,0.00014617,2]
[384919899,1757627441049,-480.0,0.00014617,2]
[384919901,1757627441059,-2232.84,0.00014617,2]
[384919903,1757627441068,-480.0,0.00014617,2]
[384919905,1757627441078,-480.0,0.00014617,2]
[384919907,1757627441087,-480.0,0.00014618,2]
[384919909,1757627441096,-480.0,0.00014619,2]
[384919911,1757627441105,-160.0,0.00014786,2]
[384919913,1757627441115,-846.96613202,0.00014786,2]
[384919915,1757627441125,-233.10680167,0.00014786,2]
[384919917,1757627441134,-217.69300629,0.00014786,2]
[384919918,1757627441143,-348.00214182,0.00014791,2]
[384919920,1757627441153,-82663.97314879,0.00014805,2]
[384919922,1757627441162,-500.0,0.00014873,2]
[384919924,1757627441172,-480.0,0.0001489,2]
[384919926,1757627441181,-480.0,0.0001489,2]
[384919928,1757627441190,-480.0,0.0001489,2]
[384919930,1757627441200,-480.0,0.0001489,2]
[384919932,1757627441210,-480.0,0.0001489,2]
[384919934,1757627441219,-480.0,0.0001489,2]
[384919936,1757627441228,-480.0,0.0001489,2]
[384919938,1757627441237,-1502.58,0.0001489,2]
[384919940,1757627441246,-552.69,0.0001489,2]
[384919942,1757627441255,-480.0,0.0001489,2]
[384919944,1757627441265,-480.0,0.0001489,2]
[384919946,1757627441274,-480.0,0.0001489,2]
[384919948,1757627441283,-465.36,0.0001489,2]
[384919950,1757627441292,-544.29,0.0001489,2]
[384919951,1757627441304,-480.0,0.0001489,2]
[384919953,1757627441313,-480.0,0.0001489,2]
[384919955,1757627441322,-490.32,0.0001489,2]
[384919957,1757627441331,-291.6,0.0001489,2]
[384919959,1757627441340,-410.0,0.0001489,2]
[384919961,1757627441349,-480.0,0.0001489,2]
[384919963,1757627441358,-480.0,0.0001489,2]
[384919965,1757627441366,-480.0,0.0001489,2]
[384919967,1757627441376,-480.0,0.0001489,2]
[384919969,1757627441385,-480.0,0.0001489,2]
[384919971,1757627441396,-480.0,0.0001489,2]
[384919973,1757627441406,-665.33,0.0001489,2]